[Event "Titled Tuesday Blitz February 15 Early 2022"]
[White "Avazkhonov, Alikhon"]
[Black "Altucher, James"]
[WhiteFideId "14208504"]
[BlackFideId "30987458"]
[WhiteElo "1739"]
[BlackElo "2180"]
[Result "1-0"]
[Round "03"]
[TimeControl "180+1"]
[Date "2022.02.15"]
[WhiteClock "0:00:20"]
[BlackClock "0:00:01"]

1. c4 {[%clk 0:03:00]}  g6 {[%clk 0:02:57]} 2. Nc3 {[%clk 0:02:59]}  Bg7 {[%clk 0:02:57]} 3. g3 {[%clk 0:03:00]}  Nf6 {[%clk 0:02:57]} 4. Bg2 {[%clk 0:03:00]}  O-O {[%clk 0:02:58]} 5. e4 {[%clk 0:03:01]}  d6 {[%clk 0:02:58]} 6. Nge2 {[%clk 0:03:01]}  c6 {[%clk 0:02:59]} 7. O-O {[%clk 0:03:01]}  Qa5 {[%clk 0:02:58]} 8. d3 {[%clk 0:03:01]}  Qh5 {[%clk 0:02:57]} 9. f4 {[%clk 0:02:55]}  Bh3 {[%clk 0:02:55]} 10. Bxh3 {[%clk 0:01:53]}  Qxh3 {[%clk 0:02:54]} 11. Rf2 {[%clk 0:01:53]}  Ng4 {[%clk 0:02:52]} 12. Rg2 {[%clk 0:01:53]}  Nd7 {[%clk 0:02:43]} 13. Kh1 {[%clk 0:01:42]}  f5 {[%clk 0:02:14]} 14. Ng1 {[%clk 0:01:30]}  Qh5 {[%clk 0:02:03]} 15. Nf3 {[%clk 0:01:27]}  Bxc3 {[%clk 0:02:00]} 16. bxc3 {[%clk 0:01:26]}  e5 {[%clk 0:01:50]} 17. Qe2 {[%clk 0:01:20]}  Rae8 {[%clk 0:01:49]} 18. fxe5 {[%clk 0:00:54]}  Ndxe5 {[%clk 0:01:27]} 19. Nxe5 {[%clk 0:00:52]}  Rxe5 {[%clk 0:01:27]} 20. Bf4 {[%clk 0:00:49]}  Ree8 {[%clk 0:01:17]} 21. Bxd6 {[%clk 0:00:46]}  Rf6 {[%clk 0:01:03]} 22. Bc5 {[%clk 0:00:42]}  fxe4 {[%clk 0:00:59]} 23. Bd4 {[%clk 0:00:40]}  Rfe6 {[%clk 0:00:39]} 24. Rf1 {[%clk 0:00:39]}  exd3 {[%clk 0:00:37]} 25. Qf3 {[%clk 0:00:36]}  R6e7 {[%clk 0:00:26]} 26. Qxd3 {[%clk 0:00:31]}  Re1 {[%clk 0:00:19]} 27. Qf3 {[%clk 0:00:26]}  Rxf1+ {[%clk 0:00:09]} 28. Qxf1 {[%clk 0:00:27]}  Rf8 {[%clk 0:00:05]} 29. Qb1 {[%clk 0:00:21]}  Qg5 {[%clk 0:00:01]} 30. h3 {[%clk 0:00:20]} 1-0


[Site "https://www.chess.com"]

[Event "Titled Tuesday Blitz February 15 Early 2022"]
[White "Baches Garcia, Guillermo"]
[Black "Kett, Tim"]
[WhiteFideId "2209764"]
[BlackFideId "1801210"]
[WhiteElo "2460"]
[BlackElo "2098"]
[Result "1/2-1/2"]
[Round "03"]
[TimeControl "180+1"]
[Date "2022.02.15"]
[WhiteClock "0:00:20"]
[BlackClock "0:00:23"]

1. e4 {[%clk 0:03:00]}  e5 {[%clk 0:02:58]} 2. Nf3 {[%clk 0:03:01]}  Nc6 {[%clk 0:02:57]} 3. Nc3 {[%clk 0:03:01]}  Nf6 {[%clk 0:02:57]} 4. d4 {[%clk 0:03:02]}  exd4 {[%clk 0:02:57]} 5. Nxd4 {[%clk 0:03:02]}  Bb4 {[%clk 0:02:57]} 6. Nxc6 {[%clk 0:03:03]}  bxc6 {[%clk 0:02:56]} 7. Bd3 {[%clk 0:03:03]}  d5 {[%clk 0:02:57]} 8. Bd2 {[%clk 0:03:03]}  dxe4 {[%clk 0:01:56]} 9. Nxe4 {[%clk 0:02:59]}  Bxd2+ {[%clk 0:01:53]} 10. Qxd2 {[%clk 0:02:51]}  Nxe4 {[%clk 0:01:49]} 11. Bxe4 {[%clk 0:02:51]}  Qxd2+ {[%clk 0:01:49]} 12. Kxd2 {[%clk 0:02:52]}  Bb7 {[%clk 0:01:46]} 13. Rad1 {[%clk 0:02:46]}  O-O-O+ {[%clk 0:01:45]} 14. Kc3 {[%clk 0:02:46]}  c5 {[%clk 0:01:45]} 15. Bxb7+ {[%clk 0:02:38]}  Kxb7 {[%clk 0:01:44]} 16. b3 {[%clk 0:02:33]}  Kc6 {[%clk 0:01:40]} 17. Rhe1 {[%clk 0:02:29]}  Rxd1 {[%clk 0:01:38]} 18. Rxd1 {[%clk 0:02:29]}  Re8 {[%clk 0:01:38]} 19. Rd2 {[%clk 0:02:18]}  Re1 {[%clk 0:01:37]} 20. h4 {[%clk 0:02:13]}  f5 {[%clk 0:01:31]} 21. g3 {[%clk 0:02:11]}  h6 {[%clk 0:01:26]} 22. Kd3 {[%clk 0:01:57]}  g5 {[%clk 0:01:23]} 23. hxg5 {[%clk 0:01:56]}  hxg5 {[%clk 0:01:23]} 24. Re2 {[%clk 0:01:56]}  Rf1 {[%clk 0:01:10]} 25. Kc4 {[%clk 0:01:48]}  Kd6 {[%clk 0:01:06]} 26. Rd2+ {[%clk 0:01:42]}  Ke5 {[%clk 0:01:06]} 27. Kxc5 {[%clk 0:01:34]}  f4 {[%clk 0:01:06]} 28. gxf4+ {[%clk 0:01:34]}  Kxf4 {[%clk 0:01:03]} 29. Kc6 {[%clk 0:01:32]}  g4 {[%clk 0:00:59]} 30. Kxc7 {[%clk 0:01:31]}  Kf3 {[%clk 0:00:59]} 31. c4 {[%clk 0:01:10]}  Rxf2 {[%clk 0:00:59]} 32. Rxf2+ {[%clk 0:01:10]}  Kxf2 {[%clk 0:00:58]} 33. c5 {[%clk 0:01:10]}  g3 {[%clk 0:00:59]} 34. c6 {[%clk 0:01:11]}  g2 {[%clk 0:01:00]} 35. Kb7 {[%clk 0:01:11]}  g1=Q {[%clk 0:00:59]} 36. c7 {[%clk 0:01:10]}  Qg7 {[%clk 0:00:50]} 37. Kb8 {[%clk 0:00:54]}  Qe5 {[%clk 0:00:49]} 38. Kb7 {[%clk 0:00:51]}  Qb5+ {[%clk 0:00:35]} 39. Kc8 {[%clk 0:00:41]}  a5 {[%clk 0:00:32]} 40. Kd8 {[%clk 0:00:40]}  Qd5+ {[%clk 0:00:31]} 41. Ke7 {[%clk 0:00:38]}  Qc6 {[%clk 0:00:31]} 42. Kd8 {[%clk 0:00:37]}  Qd6+ {[%clk 0:00:31]} 43. Kc8 {[%clk 0:00:36]}  Ke3 {[%clk 0:00:29]} 44. Kb7 {[%clk 0:00:35]}  Qd7 {[%clk 0:00:28]} 45. Kb8 {[%clk 0:00:32]}  Qb5+ {[%clk 0:00:27]} 46. Ka7 {[%clk 0:00:29]}  Qc6 {[%clk 0:00:27]} 47. Kb8 {[%clk 0:00:22]}  Qb6+ {[%clk 0:00:27]} 48. Kc8 {[%clk 0:00:22]}  Kd4 {[%clk 0:00:27]} 49. Kd7 {[%clk 0:00:22]}  Qb7 {[%clk 0:00:26]} 50. Kd8 {[%clk 0:00:21]}  Qb6 {[%clk 0:00:25]} 51. Kd7 {[%clk 0:00:21]}  Qb5+ {[%clk 0:00:24]} 52. Kd8 {[%clk 0:00:20]}  Qb6 {[%clk 0:00:23]} 53. Kd7 {[%clk 0:00:20]} 1/2-1/2


[Site "https://www.chess.com"]

[Event "Titled Tuesday Blitz February 15 Early 2022"]
[White "Barp, Alberto"]
[Black "Bugayev, Vladimir"]
[WhiteFideId "872555"]
[BlackFideId "30901480"]
[WhiteElo "2229"]
[BlackElo "2390"]
[Result "0-1"]
[Round "03"]
[TimeControl "180+1"]
[Date "2022.02.15"]
[WhiteClock "0:00:03"]
[BlackClock "0:00:38"]

1. d4 {[%clk 0:03:00]}  Nf6 {[%clk 0:02:58]} 2. c4 {[%clk 0:02:59]}  c5 {[%clk 0:02:58]} 3. d5 {[%clk 0:02:58]}  b5 {[%clk 0:02:59]} 4. cxb5 {[%clk 0:02:51]}  a6 {[%clk 0:02:59]} 5. b6 {[%clk 0:02:45]}  d6 {[%clk 0:02:59]} 6. Nc3 {[%clk 0:02:45]}  g6 {[%clk 0:02:59]} 7. e4 {[%clk 0:02:43]}  Bg7 {[%clk 0:02:59]} 8. Nf3 {[%clk 0:02:42]}  Nbd7 {[%clk 0:03:00]} 9. Be2 {[%clk 0:02:36]}  Qxb6 {[%clk 0:03:00]} 10. O-O {[%clk 0:02:36]}  O-O {[%clk 0:03:00]} 11. Nd2 {[%clk 0:02:35]}  Qc7 {[%clk 0:02:41]} 12. a4 {[%clk 0:02:34]}  a5 {[%clk 0:02:39]} 13. Re1 {[%clk 0:02:31]}  Ba6 {[%clk 0:02:39]} 14. Bxa6 {[%clk 0:02:30]}  Rxa6 {[%clk 0:02:39]} 15. Nb5 {[%clk 0:02:31]}  Qb8 {[%clk 0:02:37]} 16. Ra3 {[%clk 0:02:27]}  Nb6 {[%clk 0:02:32]} 17. Qc2 {[%clk 0:02:19]}  Ne8 {[%clk 0:02:30]} 18. h4 {[%clk 0:01:50]}  h5 {[%clk 0:02:25]} 19. Nf3 {[%clk 0:01:46]}  Nc7 {[%clk 0:02:23]} 20. Bg5 {[%clk 0:01:46]}  Nxb5 {[%clk 0:02:16]} 21. axb5 {[%clk 0:01:44]}  Ra7 {[%clk 0:02:17]} 22. b3 {[%clk 0:01:38]}  Rc8 {[%clk 0:01:59]} 23. Nd2 {[%clk 0:01:32]}  Bd4 {[%clk 0:01:37]} 24. Be3 {[%clk 0:01:27]}  Bf6 {[%clk 0:01:35]} 25. g3 {[%clk 0:01:24]}  Qa8 {[%clk 0:01:26]} 26. Re2 {[%clk 0:01:16]}  a4 {[%clk 0:01:22]} 27. bxa4 {[%clk 0:01:15]}  Rxa4 {[%clk 0:01:22]} 28. Rxa4 {[%clk 0:01:14]}  Qxa4 {[%clk 0:01:22]} 29. Qxa4 {[%clk 0:00:25]}  Nxa4 {[%clk 0:01:23]} 30. Nc4 {[%clk 0:00:14]}  Rb8 {[%clk 0:01:15]} 31. b6 {[%clk 0:00:06]}  Nxb6 {[%clk 0:01:14]} 32. Na5 {[%clk 0:00:06]}  Ra8 {[%clk 0:01:03]} 33. Nc6 {[%clk 0:00:07]}  Ra4 {[%clk 0:00:59]} 34. e5 {[%clk 0:00:05]}  Bg7 {[%clk 0:00:52]} 35. Nxe7+ {[%clk 0:00:03]}  Kf8 {[%clk 0:00:49]} 36. exd6 {[%clk 0:00:04]}  Nd7 {[%clk 0:00:43]} 37. Rc2 {[%clk 0:00:03]}  Be5 {[%clk 0:00:37]} 38. Bxc5 {[%clk 0:00:02]}  Nxc5 {[%clk 0:00:37]} 39. Rxc5 {[%clk 0:00:03]}  Bxd6 {[%clk 0:00:38]} 0-1


[Site "https://www.chess.com"]

[Event "Titled Tuesday Blitz February 15 Early 2022"]
[White "Bilan, Danila"]
[Black "Goldin, Roman"]
[WhiteFideId "24161918"]
[BlackFideId "2803860"]
[WhiteElo "2164"]
[BlackElo "2312"]
[Result "0-1"]
[Round "03"]
[TimeControl "180+1"]
[Date "2022.02.15"]
[WhiteClock "0:00:04"]
[BlackClock "0:00:07"]

1. d4 {[%clk 0:02:57]}  Nf6 {[%clk 0:02:58]} 2. Nf3 {[%clk 0:02:58]}  b5 {[%clk 0:02:57]} 3. g3 {[%clk 0:02:57]}  Bb7 {[%clk 0:02:57]} 4. Bg2 {[%clk 0:02:58]}  c5 {[%clk 0:02:57]} 5. O-O {[%clk 0:02:53]}  cxd4 {[%clk 0:02:56]} 6. Nxd4 {[%clk 0:02:54]}  Bxg2 {[%clk 0:02:55]} 7. Kxg2 {[%clk 0:02:55]}  Qc7 {[%clk 0:02:51]} 8. Qd3 {[%clk 0:02:50]}  Qb7+ {[%clk 0:02:45]} 9. Kg1 {[%clk 0:02:44]}  a6 {[%clk 0:02:45]} 10. a4 {[%clk 0:02:38]}  b4 {[%clk 0:02:44]} 11. b3 {[%clk 0:02:36]}  d5 {[%clk 0:02:44]} 12. Bb2 {[%clk 0:02:27]}  Nbd7 {[%clk 0:02:43]} 13. Nd2 {[%clk 0:02:22]}  g6 {[%clk 0:02:32]} 14. N4f3 {[%clk 0:02:07]}  Bg7 {[%clk 0:02:30]} 15. Ne5 {[%clk 0:01:57]}  Nc5 {[%clk 0:02:11]} 16. Qe3 {[%clk 0:01:52]}  Rc8 {[%clk 0:02:07]} 17. f3 {[%clk 0:01:34]}  O-O {[%clk 0:02:05]} 18. Rfd1 {[%clk 0:01:29]}  Ne6 {[%clk 0:01:57]} 19. Rac1 {[%clk 0:01:26]}  d4 {[%clk 0:01:46]} 20. Qf2 {[%clk 0:01:17]}  Nd5 {[%clk 0:01:46]} 21. Ndc4 {[%clk 0:01:09]}  Nc3 {[%clk 0:01:41]} 22. Bxc3 {[%clk 0:01:09]}  bxc3 {[%clk 0:01:33]} 23. e3 {[%clk 0:01:09]}  dxe3 {[%clk 0:01:17]} 24. Qxe3 {[%clk 0:01:10]}  Rfd8 {[%clk 0:01:14]} 25. Kg2 {[%clk 0:01:03]}  Qb4 {[%clk 0:01:06]} 26. Rxd8+ {[%clk 0:00:52]}  Rxd8 {[%clk 0:01:04]} 27. Nc6 {[%clk 0:00:52]}  Qb7 {[%clk 0:00:32]} 28. Nxd8 {[%clk 0:00:48]}  Nxd8 {[%clk 0:00:32]} 29. Rd1 {[%clk 0:00:42]}  Ne6 {[%clk 0:00:32]} 30. Qb6 {[%clk 0:00:35]}  Qxb6 {[%clk 0:00:24]} 31. Nxb6 {[%clk 0:00:35]}  Nd4 {[%clk 0:00:25]} 32. Nd5 {[%clk 0:00:26]}  Nxc2 {[%clk 0:00:22]} 33. Rc1 {[%clk 0:00:23]}  Nd4 {[%clk 0:00:14]} 34. Rxc3 {[%clk 0:00:17]}  e6 {[%clk 0:00:15]} 35. Rc8+ {[%clk 0:00:17]}  Bf8 {[%clk 0:00:15]} 36. Nb4 {[%clk 0:00:10]}  a5 {[%clk 0:00:11]} 37. Nc6 {[%clk 0:00:10]}  Nxb3 {[%clk 0:00:11]} 38. Rb8 {[%clk 0:00:10]}  Nc5 {[%clk 0:00:09]} 39. Nxa5 {[%clk 0:00:08]}  Nxa4 {[%clk 0:00:09]} 40. Rb7 {[%clk 0:00:07]}  Nc5 {[%clk 0:00:09]} 41. Ra7 {[%clk 0:00:07]}  Nd3 {[%clk 0:00:09]} 42. Nc6 {[%clk 0:00:06]}  Bc5 {[%clk 0:00:09]} 43. Nd8 {[%clk 0:00:04]}  Bxa7 {[%clk 0:00:07]} 0-1


[Site "https://www.chess.com"]

[Event "Titled Tuesday Blitz February 15 Early 2022"]
[White "Blokhin, Sofia"]
[Black "Ozdemir, Serhan Berat"]
[WhiteFideId "4508190"]
[BlackFideId "6374611"]
[WhiteElo "1762"]
[BlackElo "1920"]
[Result "1/2-1/2"]
[Round "03"]
[TimeControl "180+1"]
[Date "2022.02.15"]
[WhiteClock "0:00:21"]
[BlackClock "0:00:05"]

1. e4 {[%clk 0:03:00]}  c5 {[%clk 0:02:47]} 2. Nf3 {[%clk 0:03:00]}  e6 {[%clk 0:02:47]} 3. d4 {[%clk 0:03:00]}  cxd4 {[%clk 0:02:47]} 4. Nxd4 {[%clk 0:03:00]}  a6 {[%clk 0:02:47]} 5. Nc3 {[%clk 0:03:00]}  b5 {[%clk 0:02:46]} 6. a3 {[%clk 0:02:59]}  Bb7 {[%clk 0:02:45]} 7. Be3 {[%clk 0:02:58]}  Qc7 {[%clk 0:02:43]} 8. f3 {[%clk 0:02:57]}  Nf6 {[%clk 0:02:43]} 9. Qd2 {[%clk 0:02:56]}  Nc6 {[%clk 0:02:34]} 10. O-O-O {[%clk 0:02:43]}  b4 {[%clk 0:02:23]} 11. axb4 {[%clk 0:02:41]}  Bxb4 {[%clk 0:02:24]} 12. g4 {[%clk 0:02:23]}  d6 {[%clk 0:01:30]} 13. h4 {[%clk 0:02:17]}  Qa5 {[%clk 0:01:25]} 14. Nb3 {[%clk 0:02:12]}  Qc7 {[%clk 0:00:52]} 15. h5 {[%clk 0:02:10]}  Ne5 {[%clk 0:00:48]} 16. Be2 {[%clk 0:02:01]}  Rc8 {[%clk 0:00:44]} 17. Bd4 {[%clk 0:01:55]}  Nfd7 {[%clk 0:00:32]} 18. h6 {[%clk 0:01:47]}  Rg8 {[%clk 0:00:14]} 19. hxg7 {[%clk 0:01:46]}  Nc4 {[%clk 0:00:13]} 20. Bxc4 {[%clk 0:01:44]}  Qxc4 {[%clk 0:00:14]} 21. Rxh7 {[%clk 0:01:44]}  e5 {[%clk 0:00:13]} 22. Rh8 {[%clk 0:01:38]}  Ke7 {[%clk 0:00:12]} 23. Be3 {[%clk 0:01:06]}  Rxh8 {[%clk 0:00:12]} 24. gxh8=Q {[%clk 0:01:00]}  Rxh8 {[%clk 0:00:13]} 25. Bg5+ {[%clk 0:00:51]}  f6 {[%clk 0:00:13]} 26. Be3 {[%clk 0:00:50]}  a5 {[%clk 0:00:13]} 27. Nd5+ {[%clk 0:00:47]}  Bxd5 {[%clk 0:00:10]} 28. Qxd5 {[%clk 0:00:47]}  Rc8 {[%clk 0:00:06]} 29. Qxc4 {[%clk 0:00:35]}  Rxc4 {[%clk 0:00:06]} 30. c3 {[%clk 0:00:34]}  a4 {[%clk 0:00:03]} 31. Na1 {[%clk 0:00:29]}  a3 {[%clk 0:00:03]} 32. Bd2 {[%clk 0:00:24]}  axb2+ {[%clk 0:00:03]} 33. Kxb2 {[%clk 0:00:24]}  Bc5 {[%clk 0:00:03]} 34. Nb3 {[%clk 0:00:23]}  Ra4 {[%clk 0:00:02]} 35. Ra1 {[%clk 0:00:22]}  Rxa1 {[%clk 0:00:02]} 36. Kxa1 {[%clk 0:00:22]}  Bf2 {[%clk 0:00:03]} 37. Kb2 {[%clk 0:00:22]}  Ke6 {[%clk 0:00:02]} 38. c4 {[%clk 0:00:21]}  Nc5 {[%clk 0:00:02]} 39. Nxc5+ {[%clk 0:00:20]}  dxc5 {[%clk 0:00:02]} 40. Bc3 {[%clk 0:00:19]}  Kd6 {[%clk 0:00:03]} 41. Kc2 {[%clk 0:00:19]}  Kc6 {[%clk 0:00:03]} 42. Kd2 {[%clk 0:00:20]}  Kd6 {[%clk 0:00:04]} 43. Ke2 {[%clk 0:00:20]}  Bg3 {[%clk 0:00:05]} 44. Ke3 {[%clk 0:00:20]}  Bf4+ {[%clk 0:00:05]} 45. Ke2 {[%clk 0:00:20]}  Bg3 {[%clk 0:00:05]} 46. Ke3 {[%clk 0:00:20]}  Bf4+ {[%clk 0:00:05]} 47. Ke2 {[%clk 0:00:21]}  Bg3 {[%clk 0:00:05]} 1/2-1/2


[Site "https://www.chess.com"]

[Event "Titled Tuesday Blitz February 15 Early 2022"]
[White "Bouchet, Sebastien"]
[Black "Wagh Suyog"]
[WhiteFideId "623571"]
[BlackFideId "25071688"]
[WhiteElo "2425"]
[BlackElo "2181"]
[Result "1-0"]
[Round "03"]
[TimeControl "180+1"]
[Date "2022.02.15"]
[WhiteClock "0:00:34"]
[BlackClock "0:01:01"]

1. e4 {[%clk 0:03:00]}  e6 {[%clk 0:02:43]} 2. d3 {[%clk 0:02:54]}  d5 {[%clk 0:02:42]} 3. Nd2 {[%clk 0:02:55]}  dxe4 {[%clk 0:02:34]} 4. dxe4 {[%clk 0:02:51]}  e5 {[%clk 0:02:35]} 5. Ngf3 {[%clk 0:02:51]}  Nc6 {[%clk 0:02:35]} 6. Bb5 {[%clk 0:02:50]}  Bd6 {[%clk 0:02:32]} 7. Nc4 {[%clk 0:02:46]}  Qe7 {[%clk 0:02:31]} 8. O-O {[%clk 0:02:25]}  Bd7 {[%clk 0:02:31]} 9. Nxd6+ {[%clk 0:02:24]}  cxd6 {[%clk 0:02:27]} 10. c3 {[%clk 0:02:08]}  a6 {[%clk 0:02:27]} 11. Bc4 {[%clk 0:02:03]}  Be6 {[%clk 0:02:27]} 12. Qe2 {[%clk 0:01:45]}  Nf6 {[%clk 0:02:26]} 13. Bg5 {[%clk 0:01:42]}  h6 {[%clk 0:02:25]} 14. Bh4 {[%clk 0:01:41]}  g5 {[%clk 0:02:18]} 15. Bg3 {[%clk 0:01:40]}  Nh5 {[%clk 0:02:18]} 16. Rad1 {[%clk 0:01:33]}  Nf4 {[%clk 0:02:17]} 17. Bxf4 {[%clk 0:01:30]}  gxf4 {[%clk 0:02:18]} 18. Bxe6 {[%clk 0:01:02]}  fxe6 {[%clk 0:02:13]} 19. Ne1 {[%clk 0:01:02]}  O-O-O {[%clk 0:02:09]} 20. b4 {[%clk 0:00:57]}  Rhg8 {[%clk 0:02:07]} 21. a4 {[%clk 0:00:56]}  Qf6 {[%clk 0:01:59]} 22. f3 {[%clk 0:00:53]}  Ne7 {[%clk 0:02:00]} 23. b5 {[%clk 0:00:51]}  a5 {[%clk 0:02:00]} 24. Qf2 {[%clk 0:00:48]}  d5 {[%clk 0:01:52]} 25. Qa7 {[%clk 0:00:42]}  d4 {[%clk 0:01:33]} 26. Nd3 {[%clk 0:00:36]}  Ng6 {[%clk 0:01:15]} 27. Nc5 {[%clk 0:00:35]}  Qe7 {[%clk 0:01:00]} 28. Qa8+ {[%clk 0:00:34]}  Kc7 {[%clk 0:01:01]} 29. Qxb7+ {[%clk 0:00:34]}  Kd6 {[%clk 0:01:01]} 30. Qc6# {[%clk 0:00:34]} 1-0


[Site "https://www.chess.com"]

[Event "Titled Tuesday Blitz February 15 Early 2022"]
[White "Brunner, Nicolas"]
[Black "Galchenko, Matvey"]
[WhiteFideId "620246"]
[BlackFideId "24175480"]
[WhiteElo "2372"]
[BlackElo "2453"]
[Result "1/2-1/2"]
[Round "03"]
[TimeControl "180+1"]
[Date "2022.02.15"]
[WhiteClock "0:00:38"]
[BlackClock "0:00:05"]

1. d4 {[%clk 0:03:00]}  Nf6 {[%clk 0:02:57]} 2. c4 {[%clk 0:03:01]}  c5 {[%clk 0:02:57]} 3. d5 {[%clk 0:03:00]}  e6 {[%clk 0:02:58]} 4. Nc3 {[%clk 0:03:00]}  exd5 {[%clk 0:02:59]} 5. cxd5 {[%clk 0:03:00]}  d6 {[%clk 0:02:59]} 6. Nf3 {[%clk 0:03:01]}  g6 {[%clk 0:03:00]} 7. g3 {[%clk 0:03:01]}  Bg7 {[%clk 0:03:00]} 8. Bg2 {[%clk 0:03:01]}  O-O {[%clk 0:03:01]} 9. O-O {[%clk 0:03:02]}  Re8 {[%clk 0:03:02]} 10. h3 {[%clk 0:02:52]}  a6 {[%clk 0:02:45]} 11. a4 {[%clk 0:02:51]}  Nbd7 {[%clk 0:02:37]} 12. Nd2 {[%clk 0:02:51]}  Rb8 {[%clk 0:02:37]} 13. Nc4 {[%clk 0:02:49]}  Ne5 {[%clk 0:02:36]} 14. Na3 {[%clk 0:02:49]}  Nh5 {[%clk 0:02:20]} 15. e4 {[%clk 0:02:47]}  f5 {[%clk 0:02:07]} 16. exf5 {[%clk 0:02:28]}  Bxf5 {[%clk 0:02:08]} 17. g4 {[%clk 0:02:25]}  Bxg4 {[%clk 0:02:09]} 18. hxg4 {[%clk 0:02:25]}  Qh4 {[%clk 0:02:09]} 19. gxh5 {[%clk 0:02:04]}  Rf8 {[%clk 0:02:09]} 20. h6 {[%clk 0:00:54]}  Bh8 {[%clk 0:02:08]} 21. f3 {[%clk 0:00:48]}  Ng4 {[%clk 0:01:23]} 22. fxg4 {[%clk 0:00:48]}  Bd4+ {[%clk 0:01:14]} 23. Qxd4 {[%clk 0:00:48]}  Rxf1+ {[%clk 0:01:01]} 24. Kxf1 {[%clk 0:00:41]}  cxd4 {[%clk 0:01:02]} 25. Ne4 {[%clk 0:00:40]}  Rf8+ {[%clk 0:00:42]} 26. Kg1 {[%clk 0:00:40]}  Qe1+ {[%clk 0:00:39]} 27. Kh2 {[%clk 0:00:40]}  d3 {[%clk 0:00:26]} 28. Nc4 {[%clk 0:00:38]}  Qh4+ {[%clk 0:00:09]} 29. Kg1 {[%clk 0:00:38]}  Qe1+ {[%clk 0:00:08]} 30. Kh2 {[%clk 0:00:38]}  Qh4+ {[%clk 0:00:05]} 31. Kg1 {[%clk 0:00:38]}  Qe1+ {[%clk 0:00:05]} 32. Kh2 {[%clk 0:00:38]} 1/2-1/2


[Site "https://www.chess.com"]

[Event "Titled Tuesday Blitz February 15 Early 2022"]
[White "Chen, Justin"]
[Black "Delorme, Alban"]
[WhiteFideId "2098199"]
[BlackFideId "623636"]
[WhiteElo "2450"]
[BlackElo "2197"]
[Result "0-1"]
[Round "03"]
[TimeControl "180+1"]
[Date "2022.02.15"]
[WhiteClock "0:00:01"]
[BlackClock "0:00:15"]

1. e4 {[%clk 0:03:00]}  c5 {[%clk 0:02:59]} 2. Nf3 {[%clk 0:03:00]}  d6 {[%clk 0:02:58]} 3. Bb5+ {[%clk 0:03:00]}  Bd7 {[%clk 0:02:56]} 4. Bxd7+ {[%clk 0:02:59]}  Qxd7 {[%clk 0:02:57]} 5. O-O {[%clk 0:02:58]}  g6 {[%clk 0:02:56]} 6. c3 {[%clk 0:02:58]}  Bg7 {[%clk 0:02:56]} 7. d4 {[%clk 0:02:58]}  cxd4 {[%clk 0:02:55]} 8. cxd4 {[%clk 0:02:59]}  Nc6 {[%clk 0:02:54]} 9. Nc3 {[%clk 0:02:48]}  e6 {[%clk 0:02:49]} 10. d5 {[%clk 0:02:43]}  Ne5 {[%clk 0:02:43]} 11. dxe6 {[%clk 0:02:40]}  fxe6 {[%clk 0:02:36]} 12. Nxe5 {[%clk 0:01:38]}  Bxe5 {[%clk 0:02:31]} 13. f4 {[%clk 0:01:38]}  Bg7 {[%clk 0:02:29]} 14. f5 {[%clk 0:01:38]}  gxf5 {[%clk 0:02:26]} 15. exf5 {[%clk 0:01:37]}  exf5 {[%clk 0:01:57]} 16. Bg5 {[%clk 0:00:52]}  Nf6 {[%clk 0:01:53]} 17. Bxf6 {[%clk 0:00:38]}  Bxf6 {[%clk 0:01:53]} 18. Qh5+ {[%clk 0:00:39]}  Qf7 {[%clk 0:01:51]} 19. Qe2+ {[%clk 0:00:30]}  Be5 {[%clk 0:01:49]} 20. Rad1 {[%clk 0:00:21]}  O-O {[%clk 0:01:33]} 21. Kh1 {[%clk 0:00:19]}  Kh8 {[%clk 0:01:27]} 22. Ne4 {[%clk 0:00:16]}  Qe7 {[%clk 0:01:23]} 23. Ng3 {[%clk 0:00:10]}  Qh4 {[%clk 0:01:19]} 24. Rd3 {[%clk 0:00:10]}  Rae8 {[%clk 0:01:13]} 25. Qf2 {[%clk 0:00:10]}  f4 {[%clk 0:00:57]} 26. Ne4 {[%clk 0:00:08]}  Qxf2 {[%clk 0:00:56]} 27. Nxf2 {[%clk 0:00:08]}  Rc8 {[%clk 0:00:43]} 28. Rd2 {[%clk 0:00:06]}  f3 {[%clk 0:00:39]} 29. Nd3 {[%clk 0:00:03]}  fxg2+ {[%clk 0:00:36]} 30. Kxg2 {[%clk 0:00:04]}  Rg8+ {[%clk 0:00:36]} 31. Kh1 {[%clk 0:00:03]}  Rc4 {[%clk 0:00:31]} 32. Nxe5 {[%clk 0:00:01]}  dxe5 {[%clk 0:00:31]} 33. Re2 {[%clk 0:00:02]}  e4 {[%clk 0:00:25]} 34. h3 {[%clk 0:00:01]}  Rd4 {[%clk 0:00:23]} 35. Kh2 {[%clk 0:00:01]}  Rd3 {[%clk 0:00:21]} 36. Rf4 {[%clk 0:00:01]}  e3 {[%clk 0:00:19]} 37. Re4 {[%clk 0:00:01]}  Rd2 {[%clk 0:00:15]} 38. Rxe3 {[%clk 0:00:01]}  Rd1 {[%clk 0:00:16]} 39. Rg2 {[%clk 0:00:01]}  Rf8 {[%clk 0:00:15]} 40. Rf3 {[%clk 0:00:01]}  Rxf3 {[%clk 0:00:15]} 0-1


[Site "https://www.chess.com"]